[Event "Titled Tuesday Blitz May 4 2021"]
[White "Bologan, Victor"]
[Black "Delgadillo, Adonay"]
[WhiteFideId "13900048"]
[BlackFideId "3301915"]
[WhiteElo "2511"]
[BlackElo "2103"]
[Result "1-0"]
[Round "04"]
[TimeControl "180+1"]
[Date "2021.05.04"]
[WhiteClock "0:02:31"]
[BlackClock "0:01:09"]

1. e4 {[%clk 0:03:00]}  c5 {[%clk 0:02:57]} 2. Nf3 {[%clk 0:02:59]}  d6 {[%clk 0:02:58]} 3. d4 {[%clk 0:02:59]}  cxd4 {[%clk 0:02:58]} 4. Nxd4 {[%clk 0:02:59]}  Nf6 {[%clk 0:02:59]} 5. Nc3 {[%clk 0:02:59]}  a6 {[%clk 0:02:59]} 6. Be3 {[%clk 0:02:58]}  e5 {[%clk 0:02:59]} 7. Nb3 {[%clk 0:02:57]}  Be7 {[%clk 0:03:00]} 8. Be2 {[%clk 0:02:57]}  Be6 {[%clk 0:02:59]} 9. O-O {[%clk 0:02:56]}  Nbd7 {[%clk 0:02:59]} 10. a4 {[%clk 0:02:55]}  Rc8 {[%clk 0:02:55]} 11. Qd2 {[%clk 0:02:51]}  O-O {[%clk 0:02:46]} 12. a5 {[%clk 0:02:50]}  Bc4 {[%clk 0:02:40]} 13. Rfd1 {[%clk 0:02:46]}  Bxe2 {[%clk 0:01:55]} 14. Qxe2 {[%clk 0:02:42]}  Qc7 {[%clk 0:01:17]} 15. Nd2 {[%clk 0:02:39]}  Nc5 {[%clk 0:01:14]} 16. Bxc5 {[%clk 0:02:35]}  Qxc5 {[%clk 0:01:11]} 17. Nf1 {[%clk 0:02:34]}  Rfd8 {[%clk 0:01:09]} 18. Ne3 {[%clk 0:02:32]}  Qb4 {[%clk 0:01:09]} 19. Ned5 {[%clk 0:02:31]} 1-0


[Site "https://www.chess.com"]

[Event "Titled Tuesday Blitz May 4 2021"]
[White "Bongo Akanga Ndjila, Barthelemy"]
[Black "Baker, Chris W"]
[WhiteFideId "10609431"]
[BlackFideId "401676"]
[WhiteElo "1803"]
[BlackElo "2225"]
[Result "0-1"]
[Round "04"]
[TimeControl "180+1"]
[Date "2021.05.04"]
[WhiteClock "0:00:37"]
[BlackClock "0:01:14"]

1. d4 {[%clk 0:02:46]}  Nf6 {[%clk 0:02:59]} 2. Nf3 {[%clk 0:02:45]}  e6 {[%clk 0:02:58]} 3. Bg5 {[%clk 0:02:43]}  c5 {[%clk 0:02:55]} 4. e3 {[%clk 0:02:42]}  Qb6 {[%clk 0:02:50]} 5. Qc1 {[%clk 0:02:40]}  cxd4 {[%clk 0:02:45]} 6. Nxd4 {[%clk 0:02:39]}  Be7 {[%clk 0:02:44]} 7. Bd3 {[%clk 0:02:37]}  d5 {[%clk 0:02:40]} 8. O-O {[%clk 0:02:36]}  O-O {[%clk 0:02:38]} 9. Nc3 {[%clk 0:02:35]}  Nc6 {[%clk 0:02:35]} 10. Nxc6 {[%clk 0:02:30]}  bxc6 {[%clk 0:02:34]} 11. a4 {[%clk 0:02:27]}  a5 {[%clk 0:02:27]} 12. Ne2 {[%clk 0:02:18]}  e5 {[%clk 0:02:22]} 13. c4 {[%clk 0:02:06]}  h6 {[%clk 0:02:17]} 14. Bh4 {[%clk 0:02:00]}  Ba6 {[%clk 0:02:11]} 15. Rd1 {[%clk 0:01:50]}  e4 {[%clk 0:02:07]} 16. Bb1 {[%clk 0:01:40]}  Bxc4 {[%clk 0:02:05]} 17. Nc3 {[%clk 0:01:38]}  Rab8 {[%clk 0:01:58]} 18. Rd2 {[%clk 0:01:32]}  Rfe8 {[%clk 0:01:44]} 19. Bxf6 {[%clk 0:01:26]}  Bxf6 {[%clk 0:01:43]} 20. Ba2 {[%clk 0:01:00]}  Bxa2 {[%clk 0:01:40]} 21. Rxa2 {[%clk 0:00:59]}  Qb3 {[%clk 0:01:36]} 22. Ra3 {[%clk 0:00:54]}  Qb4 {[%clk 0:01:26]} 23. Na2 {[%clk 0:00:47]}  Bxb2 {[%clk 0:01:19]} 24. Nxb4 {[%clk 0:00:40]}  Bxc1 {[%clk 0:01:18]} 25. Nxc6 {[%clk 0:00:37]}  Bxd2 {[%clk 0:01:14]} 26. Nxb8 {[%clk 0:00:37]}  Rxb8 {[%clk 0:01:14]} 0-1


[Site "https://www.chess.com"]

[Event "Titled Tuesday Blitz May 4 2021"]
[White "Bonte, Andrei-Mihai"]
[Black "Alvarez Fernandez, Enrique"]
[WhiteFideId "1210297"]
[BlackFideId "2227398"]
[WhiteElo "2200"]
[BlackElo "2316"]
[Result "1/2-1/2"]
[Round "04"]
[TimeControl "180+1"]
[Date "2021.05.04"]
[WhiteClock "0:00:24"]
[BlackClock "0:01:15"]

1. d4 {[%clk 0:03:00]}  d5 {[%clk 0:02:52]} 2. Nf3 {[%clk 0:02:59]}  c5 {[%clk 0:02:51]} 3. dxc5 {[%clk 0:02:52]}  e6 {[%clk 0:02:50]} 4. e3 {[%clk 0:02:50]}  Bxc5 {[%clk 0:02:49]} 5. c4 {[%clk 0:02:50]}  Nf6 {[%clk 0:02:48]} 6. a3 {[%clk 0:02:49]}  a5 {[%clk 0:02:47]} 7. Nc3 {[%clk 0:02:45]}  Nc6 {[%clk 0:02:46]} 8. cxd5 {[%clk 0:02:32]}  exd5 {[%clk 0:02:45]} 9. Bb5 {[%clk 0:02:30]}  O-O {[%clk 0:02:44]} 10. O-O {[%clk 0:02:30]}  Bg4 {[%clk 0:02:43]} 11. h3 {[%clk 0:02:27]}  Bh5 {[%clk 0:02:42]} 12. Be2 {[%clk 0:02:23]}  Re8 {[%clk 0:02:41]} 13. Nb5 {[%clk 0:02:22]}  Ne4 {[%clk 0:02:36]} 14. Bd2 {[%clk 0:02:15]}  h6 {[%clk 0:02:34]} 15. Bc3 {[%clk 0:02:14]}  Nxc3 {[%clk 0:02:30]} 16. bxc3 {[%clk 0:02:15]}  Qd7 {[%clk 0:02:17]} 17. a4 {[%clk 0:02:14]}  Rad8 {[%clk 0:02:16]} 18. Rb1 {[%clk 0:01:44]}  Bg6 {[%clk 0:02:12]} 19. Rb2 {[%clk 0:01:32]}  Qe6 {[%clk 0:02:01]} 20. Nbd4 {[%clk 0:01:28]}  Nxd4 {[%clk 0:01:59]} 21. cxd4 {[%clk 0:01:19]}  Bb4 {[%clk 0:01:57]} 22. Ne5 {[%clk 0:01:16]}  Bh7 {[%clk 0:01:55]} 23. Bb5 {[%clk 0:01:09]}  Rf8 {[%clk 0:01:51]} 24. Nd3 {[%clk 0:01:00]}  Bxd3 {[%clk 0:01:49]} 25. Qxd3 {[%clk 0:00:59]}  Rc8 {[%clk 0:01:46]} 26. Rc2 {[%clk 0:00:58]}  g6 {[%clk 0:01:41]} 27. Rfc1 {[%clk 0:00:57]}  Kg7 {[%clk 0:01:40]} 28. g4 {[%clk 0:00:45]}  Bd6 {[%clk 0:01:37]} 29. Kg2 {[%clk 0:00:42]}  h5 {[%clk 0:01:34]} 30. Rxc8 {[%clk 0:00:42]}  Rxc8 {[%clk 0:01:33]} 31. Rxc8 {[%clk 0:00:42]}  Qxc8 {[%clk 0:01:34]} 32. gxh5 {[%clk 0:00:37]}  gxh5 {[%clk 0:01:22]} 33. Qe2 {[%clk 0:00:28]}  Qf5 {[%clk 0:01:21]} 34. Qf3 {[%clk 0:00:28]}  Kg6 {[%clk 0:01:15]} 35. Qxf5+ {[%clk 0:00:24]}  Kxf5 {[%clk 0:01:15]} 36. Kf3 {[%clk 0:00:24]} 1/2-1/2


[Site "https://www.chess.com"]

[Event "Titled Tuesday Blitz May 4 2021"]
[White "Buksa, Nataliya"]
[Black "Josse, Mark"]
[WhiteFideId "14123622"]
[BlackFideId "414476"]
[WhiteElo "2214"]
[BlackElo "2263"]
[Result "1-0"]
[Round "04"]
[TimeControl "180+1"]
[Date "2021.05.04"]
[WhiteClock "0:01:29"]
[BlackClock "0:00:40"]

1. d4 {[%clk 0:03:00]}  d5 {[%clk 0:02:58]} 2. Nc3 {[%clk 0:03:01]}  e6 {[%clk 0:02:58]} 3. Bf4 {[%clk 0:03:01]}  Bb4 {[%clk 0:02:55]} 4. Qd3 {[%clk 0:03:00]}  Nf6 {[%clk 0:02:48]} 5. a3 {[%clk 0:02:59]}  Ba5 {[%clk 0:02:47]} 6. b4 {[%clk 0:02:59]}  Bb6 {[%clk 0:02:47]} 7. e3 {[%clk 0:03:00]}  O-O {[%clk 0:02:43]} 8. Nf3 {[%clk 0:03:00]}  a5 {[%clk 0:02:43]} 9. b5 {[%clk 0:02:56]}  c5 {[%clk 0:02:40]} 10. bxc6 {[%clk 0:02:56]}  Nxc6 {[%clk 0:02:39]} 11. Be2 {[%clk 0:02:56]}  a4 {[%clk 0:02:39]} 12. O-O {[%clk 0:02:55]}  Bd7 {[%clk 0:02:39]} 13. Rab1 {[%clk 0:02:51]}  Na5 {[%clk 0:02:36]} 14. Qd2 {[%clk 0:02:38]}  Rc8 {[%clk 0:02:34]} 15. Ne5 {[%clk 0:02:38]}  Bc7 {[%clk 0:01:53]} 16. Bg5 {[%clk 0:02:35]}  Be8 {[%clk 0:01:47]} 17. Ng4 {[%clk 0:02:05]}  Bd6 {[%clk 0:01:35]} 18. Nxf6+ {[%clk 0:02:03]}  gxf6 {[%clk 0:01:34]} 19. Bh6 {[%clk 0:02:03]}  Bxa3 {[%clk 0:01:27]} 20. e4 {[%clk 0:02:04]}  Qc7 {[%clk 0:01:02]} 21. Nb5 {[%clk 0:01:55]}  Qxc2 {[%clk 0:00:50]} 22. Qxc2 {[%clk 0:01:39]}  Rxc2 {[%clk 0:00:50]} 23. Bd3 {[%clk 0:01:30]}  Rb2 {[%clk 0:00:40]} 24. Nxa3 {[%clk 0:01:29]} 1-0


[Site "https://www.chess.com"]

[Event "Titled Tuesday Blitz May 4 2021"]
[White "Camlar, Arda"]
[Black "Velickovic, Zoran"]
[WhiteFideId "44576692"]
[BlackFideId "14601184"]
[WhiteElo "2007"]
[BlackElo "2333"]
[Result "0-1"]
[Round "04"]
[TimeControl "180+1"]
[Date "2021.05.04"]
[WhiteClock "0:00:12"]
[BlackClock "0:00:25"]

1. c4 {[%clk 0:03:00]}  c5 {[%clk 0:02:59]} 2. Nc3 {[%clk 0:03:00]}  g6 {[%clk 0:03:00]} 3. Nf3 {[%clk 0:03:00]}  Bg7 {[%clk 0:03:00]} 4. g3 {[%clk 0:03:00]}  Nc6 {[%clk 0:03:00]} 5. Bg2 {[%clk 0:03:00]}  e6 {[%clk 0:03:00]} 6. O-O {[%clk 0:03:00]}  Nge7 {[%clk 0:03:00]} 7. Rb1 {[%clk 0:02:59]}  O-O {[%clk 0:02:57]} 8. d3 {[%clk 0:02:58]}  b6 {[%clk 0:02:55]} 9. a3 {[%clk 0:02:57]}  Bb7 {[%clk 0:02:55]} 10. Bd2 {[%clk 0:02:57]}  d5 {[%clk 0:02:50]} 11. cxd5 {[%clk 0:02:57]}  Nxd5 {[%clk 0:02:49]} 12. Nxd5 {[%clk 0:02:53]}  Qxd5 {[%clk 0:02:49]} 13. b4 {[%clk 0:02:43]}  cxb4 {[%clk 0:02:43]} 14. axb4 {[%clk 0:02:42]}  Rfc8 {[%clk 0:02:34]} 15. Bf4 {[%clk 0:02:18]}  Nd4 {[%clk 0:02:24]} 16. Nh4 {[%clk 0:02:14]}  Qd7 {[%clk 0:02:23]} 17. Bxb7 {[%clk 0:02:05]}  Qxb7 {[%clk 0:02:23]} 18. Be3 {[%clk 0:02:06]}  Nb5 {[%clk 0:02:21]} 19. Qd2 {[%clk 0:02:03]}  Nc3 {[%clk 0:02:14]} 20. Rbc1 {[%clk 0:02:02]}  Nd5 {[%clk 0:02:14]} 21. b5 {[%clk 0:01:52]}  Qd7 {[%clk 0:02:03]} 22. Rc4 {[%clk 0:01:45]}  Nxe3 {[%clk 0:01:34]} 23. Qxe3 {[%clk 0:01:45]}  Qxb5 {[%clk 0:01:34]} 24. Rfc1 {[%clk 0:01:32]}  Rxc4 {[%clk 0:01:26]} 25. Rxc4 {[%clk 0:01:31]}  Qd7 {[%clk 0:01:26]} 26. Qc1 {[%clk 0:01:23]}  a5 {[%clk 0:01:20]} 27. Rc7 {[%clk 0:01:05]}  Qd8 {[%clk 0:01:19]} 28. Qf4 {[%clk 0:00:53]}  Qe8 {[%clk 0:01:08]} 29. Nf3 {[%clk 0:00:48]}  a4 {[%clk 0:00:59]} 30. Ng5 {[%clk 0:00:44]}  Bh6 {[%clk 0:00:55]} 31. h4 {[%clk 0:00:21]}  a3 {[%clk 0:00:30]} 32. Rc1 {[%clk 0:00:12]}  a2 {[%clk 0:00:26]} 33. Ra1 {[%clk 0:00:12]}  Bg7 {[%clk 0:00:25]} 0-1


[Site "https://www.chess.com"]

[Event "Titled Tuesday Blitz May 4 2021"]
[White "Caputcuoglu, Zeki Berke"]
[Black "Gazis, Efstathios"]
[WhiteFideId "34548610"]
[BlackFideId "4200659"]
[WhiteElo "1368"]
[BlackElo "2219"]
[Result "1-0"]
[Round "04"]
[TimeControl "180+1"]
[Date "2021.05.04"]
[WhiteClock "0:01:01"]
[BlackClock "0:00:45"]

1. e4 {[%clk 0:03:00]}  e6 {[%clk 0:03:00]} 2. d4 {[%clk 0:03:00]}  d5 {[%clk 0:03:00]} 3. Nd2 {[%clk 0:03:01]}  c5 {[%clk 0:03:00]} 4. Ngf3 {[%clk 0:03:01]}  cxd4 {[%clk 0:02:59]} 5. Nxd4 {[%clk 0:03:00]}  Nc6 {[%clk 0:02:58]} 6. Bb5 {[%clk 0:03:01]}  Bd7 {[%clk 0:02:58]} 7. Nxc6 {[%clk 0:02:58]}  Bxc6 {[%clk 0:02:59]} 8. Bxc6+ {[%clk 0:02:58]}  bxc6 {[%clk 0:03:00]} 9. c4 {[%clk 0:02:58]}  Bd6 {[%clk 0:02:49]} 10. Qg4 {[%clk 0:02:39]}  Nf6 {[%clk 0:02:39]} 11. Qe2 {[%clk 0:02:28]}  Nxe4 {[%clk 0:02:23]} 12. Nxe4 {[%clk 0:02:27]}  dxe4 {[%clk 0:02:24]} 13. Qxe4 {[%clk 0:02:28]}  Bb4+ {[%clk 0:02:24]} 14. Ke2 {[%clk 0:02:27]}  Qb6 {[%clk 0:02:17]} 15. Rd1 {[%clk 0:02:14]}  O-O {[%clk 0:02:16]} 16. Be3 {[%clk 0:02:12]}  Qa6 {[%clk 0:02:14]} 17. Kf1 {[%clk 0:02:09]}  Rfd8 {[%clk 0:02:08]} 18. a3 {[%clk 0:02:08]}  Be7 {[%clk 0:02:04]} 19. Kg1 {[%clk 0:02:01]}  Bf6 {[%clk 0:01:57]} 20. Qc2 {[%clk 0:02:00]}  h6 {[%clk 0:01:51]} 21. Rxd8+ {[%clk 0:01:51]}  Rxd8 {[%clk 0:01:50]} 22. Re1 {[%clk 0:01:51]}  Qb7 {[%clk 0:01:46]} 23. b4 {[%clk 0:01:50]}  Qd7 {[%clk 0:01:43]} 24. g3 {[%clk 0:01:45]}  a6 {[%clk 0:01:43]} 25. Qa4 {[%clk 0:01:40]}  Qb7 {[%clk 0:01:38]} 26. Rd1 {[%clk 0:01:38]}  Rxd1+ {[%clk 0:01:36]} 27. Qxd1 {[%clk 0:01:39]}  Kf8 {[%clk 0:01:21]} 28. Qd3 {[%clk 0:01:25]}  Kg8 {[%clk 0:01:20]} 29. Qb3 {[%clk 0:01:20]}  h5 {[%clk 0:01:17]} 30. h4 {[%clk 0:01:18]}  g6 {[%clk 0:01:16]} 31. a4 {[%clk 0:01:17]}  Be5 {[%clk 0:01:00]} 32. b5 {[%clk 0:01:08]}  cxb5 {[%clk 0:01:01]} 33. axb5 {[%clk 0:01:07]}  axb5 {[%clk 0:01:02]} 34. cxb5 {[%clk 0:01:07]}  Qf3 {[%clk 0:01:00]} 35. b6 {[%clk 0:01:04]}  Kg7 {[%clk 0:00:53]} 36. b7 {[%clk 0:01:02]}  Bb8 {[%clk 0:00:45]} 37. Bh6+ {[%clk 0:01:01]} 1-0


[Site "https://www.chess.com"]

[Event "Titled Tuesday Blitz May 4 2021"]
[White "Chasin, Nico"]
[Black "Svane, Rasmus"]
[WhiteFideId "30908477"]
[BlackFideId "4657101"]
[WhiteElo "2135"]
[BlackElo "2669"]
[Result "1-0"]
[Round "04"]
[TimeControl "180+1"]
[Date "2021.05.04"]
[WhiteClock "0:00:36"]
[BlackClock "0:01:09"]

1. e4 {[%clk 0:02:53]}  c6 {[%clk 0:03:00]} 2. d3 {[%clk 0:02:49]}  d5 {[%clk 0:03:01]} 3. Nd2 {[%clk 0:02:46]}  e5 {[%clk 0:03:01]} 4. Ngf3 {[%clk 0:02:46]}  Bd6 {[%clk 0:03:01]} 5. h3 {[%clk 0:02:44]}  Nf6 {[%clk 0:03:01]} 6. g3 {[%clk 0:02:39]}  O-O {[%clk 0:03:00]} 7. Bg2 {[%clk 0:02:39]}  Re8 {[%clk 0:03:00]} 8. O-O {[%clk 0:02:40]}  Nbd7 {[%clk 0:03:01]} 9. Qe2 {[%clk 0:02:38]}  Nf8 {[%clk 0:03:01]} 10. b3 {[%clk 0:02:36]}  Ng6 {[%clk 0:03:01]} 11. Bb2 {[%clk 0:02:36]}  Bd7 {[%clk 0:03:01]} 12. Rfe1 {[%clk 0:02:35]}  Qc7 {[%clk 0:03:01]} 13. Nf1 {[%clk 0:02:33]}  Rad8 {[%clk 0:03:01]} 14. Rad1 {[%clk 0:02:30]}  h6 {[%clk 0:03:01]} 15. Ne3 {[%clk 0:02:28]}  Qa5 {[%clk 0:03:00]} 16. Nf5 {[%clk 0:02:23]}  Bb4 {[%clk 0:02:56]} 17. c3 {[%clk 0:02:04]}  Bxc3 {[%clk 0:02:50]} 18. Bxc3 {[%clk 0:02:04]}  Qxc3 {[%clk 0:02:51]} 19. Nd6 {[%clk 0:02:04]}  Re7 {[%clk 0:02:46]} 20. Nxb7 {[%clk 0:02:04]}  Qb4 {[%clk 0:02:45]} 21. Nxd8 {[%clk 0:02:03]}  Qb8 {[%clk 0:02:43]} 22. Nxf7 {[%clk 0:01:53]}  Kxf7 {[%clk 0:02:35]} 23. d4 {[%clk 0:01:37]}  dxe4 {[%clk 0:02:31]} 24. Nxe5+ {[%clk 0:01:32]}  Nxe5 {[%clk 0:02:32]} 25. dxe5 {[%clk 0:01:32]}  Qxe5 {[%clk 0:02:32]} 26. Qc4+ {[%clk 0:01:31]}  Kg6 {[%clk 0:02:32]} 27. Bxe4+ {[%clk 0:01:05]}  Nxe4 {[%clk 0:02:31]} 28. Rxd7 {[%clk 0:01:04]}  Rxd7 {[%clk 0:02:25]} 29. Qxc6+ {[%clk 0:01:04]}  Rd6 {[%clk 0:02:10]} 30. Qxe4+ {[%clk 0:01:03]}  Qxe4 {[%clk 0:02:11]} 31. Rxe4 {[%clk 0:01:04]}  a5 {[%clk 0:02:11]} 32. Re5 {[%clk 0:01:01]}  a4 {[%clk 0:02:07]} 33. bxa4 {[%clk 0:00:59]}  Rd2 {[%clk 0:02:07]} 34. a5 {[%clk 0:00:59]}  Rxa2 {[%clk 0:02:07]} 35. Rb5 {[%clk 0:00:58]}  Kf6 {[%clk 0:02:02]} 36. Rb6+ {[%clk 0:00:56]}  Kf5 {[%clk 0:02:02]} 37. Ra6 {[%clk 0:00:57]}  Kg5 {[%clk 0:01:49]} 38. Kg2 {[%clk 0:00:56]}  Ra3 {[%clk 0:01:48]} 39. Ra7 {[%clk 0:00:52]}  Kf6 {[%clk 0:01:48]} 40. a6 {[%clk 0:00:52]}  Kg6 {[%clk 0:01:48]} 41. Ra8 {[%clk 0:00:52]}  Kf7 {[%clk 0:01:47]} 42. a7 {[%clk 0:00:51]}  Kg6 {[%clk 0:01:42]} 43. g4 {[%clk 0:00:46]}  Kf7 {[%clk 0:01:40]} 44. h4 {[%clk 0:00:45]}  Kg6 {[%clk 0:01:39]} 45. h5+ {[%clk 0:00:45]}  Kf7 {[%clk 0:01:38]} 46. Kf1 {[%clk 0:00:43]}  Ra2 {[%clk 0:01:32]} 47. f4 {[%clk 0:00:42]}  Ra4 {[%clk 0:01:25]} 48. Ke2 {[%clk 0:00:40]}  Ra3 {[%clk 0:01:09]} 49. g5 {[%clk 0:00:39]}  hxg5 {[%clk 0:01:08]} 50. fxg5 {[%clk 0:00:39]}  g6 {[%clk 0:01:09]} 51. h6 {[%clk 0:00:36]} 1-0


[Site "https://www.chess.com"]

[Event "Titled Tuesday Blitz May 4 2021"]
[White "Chen, Forest"]
[Black "Bommini, Mounika Akshaya"]
[WhiteFideId "30908205"]
[BlackFideId "25019872"]
[WhiteElo "2522"]
[BlackElo "1610"]
[Result "1-0"]
[Round "04"]
[TimeControl "180+1"]
[Date "2021.05.04"]
[WhiteClock "0:00:16"]
[BlackClock "0:00:04"]

1. d4 {[%clk 0:02:56]}  Nf6 {[%clk 0:02:57]} 2. c4 {[%clk 0:02:56]}  c5 {[%clk 0:02:56]} 3. d5 {[%clk 0:02:56]}  e6 {[%clk 0:02:57]} 4. Nc3 {[%clk 0:02:57]}  exd5 {[%clk 0:02:57]} 5. cxd5 {[%clk 0:02:58]}  d6 {[%clk 0:02:58]} 6. e4 {[%clk 0:02:58]}  g6 {[%clk 0:02:58]} 7. Nf3 {[%clk 0:02:57]}  Bg7 {[%clk 0:02:58]} 8. Bb5+ {[%clk 0:02:57]}  Bd7 {[%clk 0:02:57]} 9. a4 {[%clk 0:02:56]}  a6 {[%clk 0:02:56]} 10. Bd3 {[%clk 0:02:55]}  O-O {[%clk 0:02:55]} 11. O-O {[%clk 0:02:55]}  Re8 {[%clk 0:02:43]} 12. Rb1 {[%clk 0:02:55]}  b5 {[%clk 0:02:40]} 13. axb5 {[%clk 0:02:54]}  axb5 {[%clk 0:02:40]} 14. Nxb5 {[%clk 0:02:31]}  Bxb5 {[%clk 0:02:36]} 15. Bxb5 {[%clk 0:02:31]}  Rxe4 {[%clk 0:02:36]} 16. Bg5 {[%clk 0:02:25]}  Nbd7 {[%clk 0:02:29]} 17. Bc6 {[%clk 0:02:06]}  Rb8 {[%clk 0:02:28]} 18. Bd2 {[%clk 0:02:05]}  Nb6 {[%clk 0:02:17]} 19. Bc3 {[%clk 0:02:04]}  Nc4 {[%clk 0:01:48]} 20. Qc2 {[%clk 0:01:52]}  Qe7 {[%clk 0:01:38]} 21. Rfe1 {[%clk 0:01:29]}  Nb6 {[%clk 0:01:17]} 22. Bxf6 {[%clk 0:01:03]}  Rxe1+ {[%clk 0:01:14]} 23. Rxe1 {[%clk 0:01:04]}  Qxf6 {[%clk 0:01:11]} 24. b3 {[%clk 0:00:59]}  Nc8 {[%clk 0:00:52]} 25. Re8+ {[%clk 0:00:56]}  Bf8 {[%clk 0:00:50]} 26. h3 {[%clk 0:00:54]}  Kg7 {[%clk 0:00:38]} 27. Nd2 {[%clk 0:00:47]}  Qa1+ {[%clk 0:00:26]} 28. Kh2 {[%clk 0:00:44]}  Be7 {[%clk 0:00:14]} 29. Qe4 {[%clk 0:00:41]}  Bf6 {[%clk 0:00:13]} 30. Nc4 {[%clk 0:00:39]}  Rxb3 {[%clk 0:00:08]} 31. Rxc8 {[%clk 0:00:38]}  Rb1 {[%clk 0:00:09]} 32. Ne3 {[%clk 0:00:18]}  Rh1+ {[%clk 0:00:08]} 33. Kg3 {[%clk 0:00:19]}  Be5+ {[%clk 0:00:05]} 34. f4 {[%clk 0:00:19]}  Qe1+ {[%clk 0:00:04]} 35. Kf3 {[%clk 0:00:16]}  Qd1+ {[%clk 0:00:04]} 36. Nxd1 {[%clk 0:00:16]} 1-0


[Site "https://www.chess.com"]

[Event "Titled Tuesday Blitz May 4 2021"]
[White "Chitlange Sakshi"]
[Black "Samarth, J Rao"]
[WhiteFideId "35002899"]
[BlackFideId "46652370"]
[WhiteElo "1787"]
[BlackElo "1514"]
[Result "1-0"]
[Round "04"]
[TimeControl "180+1"]
[Date "2021.05.04"]
[WhiteClock "0:00:17"]
[BlackClock "0:00:02"]

1. d4 {[%clk 0:03:00]}  d5 {[%clk 0:02:37]} 2. Bf4 {[%clk 0:03:00]}  Nf6 {[%clk 0:02:32]} 3. e3 {[%clk 0:03:00]}  c5 {[%clk 0:02:28]} 4. Nd2 {[%clk 0:02:59]}  Nc6 {[%clk 0:02:27]} 5. Ngf3 {[%clk 0:02:58]}  e6 {[%clk 0:02:24]} 6. c3 {[%clk 0:02:56]}  Be7 {[%clk 0:02:24]} 7. Bd3 {[%clk 0:02:54]}  Nh5 {[%clk 0:02:23]} 8. Bg3 {[%clk 0:02:50]}  b6 {[%clk 0:02:21]} 9. Bb5 {[%clk 0:02:44]}  Bd7 {[%clk 0:02:20]} 10. Bxc6 {[%clk 0:02:31]}  Bxc6 {[%clk 0:02:18]} 11. Ne5 {[%clk 0:02:31]}  Nxg3 {[%clk 0:02:11]} 12. Nxc6 {[%clk 0:02:29]}  Qc7 {[%clk 0:02:01]} 13. hxg3 {[%clk 0:02:00]}  Qxc6 {[%clk 0:01:57]} 14. Nf3 {[%clk 0:02:01]}  cxd4 {[%clk 0:01:48]} 15. exd4 {[%clk 0:01:54]}  Qb5 {[%clk 0:01:43]} 16. Qc2 {[%clk 0:01:29]}  Bf6 {[%clk 0:01:13]} 17. Rd1 {[%clk 0:00:59]}  O-O-O {[%clk 0:01:11]} 18. a4 {[%clk 0:00:50]}  Qa6 {[%clk 0:01:09]} 19. b4 {[%clk 0:00:47]}  Qc4 {[%clk 0:01:02]} 20. Nd2 {[%clk 0:00:44]}  Qc7 {[%clk 0:00:54]} 21. b5 {[%clk 0:00:38]}  Bxd4 {[%clk 0:00:50]} 22. Nb1 {[%clk 0:00:38]}  Be5 {[%clk 0:00:44]} 23. Qd3 {[%clk 0:00:36]}  Kb8 {[%clk 0:00:43]} 24. Rc1 {[%clk 0:00:35]}  d4 {[%clk 0:00:40]} 25. c4 {[%clk 0:00:34]}  Bd6 {[%clk 0:00:26]} 26. Kf1 {[%clk 0:00:31]}  f5 {[%clk 0:00:23]} 27. Nd2 {[%clk 0:00:30]}  e5 {[%clk 0:00:23]} 28. Qxf5 {[%clk 0:00:24]}  Rhf8 {[%clk 0:00:09]} 29. Qd3 {[%clk 0:00:24]}  Bb4 {[%clk 0:00:06]} 30. Ne4 {[%clk 0:00:24]}  g6 {[%clk 0:00:04]} 31. Ke2 {[%clk 0:00:20]}  Rf5 {[%clk 0:00:03]} 32. f3 {[%clk 0:00:19]}  Rdf8 {[%clk 0:00:03]} 33. g4 {[%clk 0:00:20]}  R5f7 {[%clk 0:00:03]} 34. Rh3 {[%clk 0:00:20]}  Rg8 {[%clk 0:00:02]} 35. Rch1 {[%clk 0:00:20]}  Rgg7 {[%clk 0:00:02]} 36. Rh6 {[%clk 0:00:19]}  Re7 {[%clk 0:00:02]} 37. Ng5 {[%clk 0:00:17]} 1-0


[Site "https://www.chess.com"]

[Event "Titled Tuesday Blitz May 4 2021"]
[White "Christensen, Thomas"]
[Black "Heinemann, Josefine"]
[WhiteFideId "1403532"]
[BlackFideId "12900460"]
[WhiteElo "2289"]
[BlackElo "2300"]
[Result "1/2-1/2"]
[Round "04"]
[TimeControl "180+1"]
[Date "2021.05.04"]
[WhiteClock "0:00:34"]
[BlackClock "0:00:52"]

1. d4 {[%clk 0:03:00]}  Nf6 {[%clk 0:02:57]} 2. Nc3 {[%clk 0:03:00]}  d5 {[%clk 0:02:55]} 3. e4 {[%clk 0:03:00]}  dxe4 {[%clk 0:02:50]} 4. f3 {[%clk 0:03:00]}  exf3 {[%clk 0:02:50]} 5. Nxf3 {[%clk 0:03:01]}  e6 {[%clk 0:02:33]} 6. Bd3 {[%clk 0:02:56]}  c5 {[%clk 0:02:29]} 7. dxc5 {[%clk 0:02:51]}  Bxc5 {[%clk 0:02:30]} 8. Bg5 {[%clk 0:02:51]}  Nc6 {[%clk 0:02:27]} 9. Qd2 {[%clk 0:02:52]}  Be7 {[%clk 0:02:18]} 10. O-O {[%clk 0:02:49]}  O-O {[%clk 0:02:17]} 11. Qf4 {[%clk 0:02:29]}  Nd5 {[%clk 0:01:17]} 12. Qh4 {[%clk 0:02:26]}  g6 {[%clk 0:01:16]} 13. Qh6 {[%clk 0:02:16]}  f6 {[%clk 0:00:52]} 14. Bxg6 {[%clk 0:02:13]}  hxg6 {[%clk 0:00:52]} 15. Qxg6+ {[%clk 0:02:13]}  Kh8 {[%clk 0:00:52]} 16. Qh6+ {[%clk 0:00:32]}  Kg8 {[%clk 0:00:51]} 17. Qg6+ {[%clk 0:00:33]}  Kh8 {[%clk 0:00:52]} 18. Qh6+ {[%clk 0:00:33]}  Kg8 {[%clk 0:00:52]} 19. Qg6+ {[%clk 0:00:34]} 1/2-1/2


[Site "https://www.chess.com"]